bitfinex/quotes_ETHUSD_20250210
["timestamp","ask_amount","ask_price","bid_price","bid_amount"]
[1739203725121,3.74806,2668.1,2667.8,0.09754087]
[1739203725433,3.74806,2668.1,2667.7,0.09764212]
[1739203725641,3.74806,2668.1,2667.9,0.09743963]
[1739203725836,0.7812,2668.2,2667.8,0.09754087]
[1739203726043,0.7812,2668.2,2668.0,0.09733839]
[1739203726202,0.7812,2668.2,2667.9,0.09743963]
[1739203726398,4.52916,2668.2,2668.1,0.09723717]
[1739203726625,3.75556,2668.1,2667.4,12.49889]
[1739203726849,3.74834,2667.9,2667.4,12.49889]
[1739203727001,3.74841,2667.8,2667.4,8.75]
[1739203727361,3.74822,2668.0,2667.4,8.75]
[1739203727533,3.0075,2668.1,2667.5,3.74875]
[1739203727706,0.7812,2668.2,2667.4,8.75]
[1739203727966,0.7812,2668.2,2667.8,3.74829]
[1739203728203,4.52915,2668.2,2667.6,3.74858]
[1739203728482,4.52915,2668.2,2667.7,3.74844]
[1739203728686,3.74806,2668.1,2667.6,3.74865]
[1739203728899,3.7812,2668.2,2667.7,3.74845]
[1739203729208,7.52907,2668.2,2667.7,3.74845]
[1739203729664,4.52866,2668.5,2668.0,3.74803]
[1739203730067,4.52866,2668.5,2667.8,3.7484]
[1739203730285,0.7812,2668.5,2668.0,3.74809]
[1739203730466,0.7812,2668.5,2668.0,3.74805]
[1739203730467,7.52864,2668.5,2668.0,3.74805]
[1739203730665,11.27619,2668.5,2668.0,3.74805]
[1739203730864,3.74759,2668.4,2668.0,3.74805]
[1739203731085,7.52864,2668.5,2668.0,3.74805]
[1739203731382,0.7812,2668.5,2667.7,0.7888]
[1739203731570,4.52862,2668.5,2668.0,3.74804]
[1739203731768,3.74758,2668.4,2667.9,3.74825]
[1739203732508,4.52862,2668.5,2667.9,3.74825]
[1739203732690,3.74722,2668.7,2668.0,3.74812]
[1739203732899,3.74722,2668.7,2668.2,3.74777]
[1739203733216,3.74722,2668.7,2668.3,0.0965164]
[1739203733416,3.74756,2668.4,2668.3,0.0965164]
[1739203733614,3.74756,2668.4,2668.1,8.75]
[1739203733773,3.74756,2668.4,2668.3,0.09645339]
[1739203733973,3.74756,2668.4,2668.2,0.0965546]
[1739203734176,7.49476,2668.6,2668.3,0.09645339]
[1739203734374,3.74744,2668.5,2668.3,0.09645339]
[1739203734574,3.74744,2668.5,2668.1,8.75]
[1739203734775,7.49467,2668.6,2668.4,0.09635219]
[1739203734976,0.7812,2668.8,2667.9,8.75]
[1739203735321,3.74736,2668.6,2668.0,3.74802]
[1739203735489,3.74749,2668.5,2668.0,3.84477705]
[1739203735674,3.74749,2668.5,2668.1,3.74798]
[1739203735875,3.74714,2668.7,2668.2,0.0965546]
[1739203736580,3.7473,2668.6,2668.2,0.0965546]
[1739203737423,3.74714,2668.7,2668.2,0.0965546]
[1739203737611,3.74714,2668.7,2668.2,3.8443146]
[1739203738524,3.74745,2668.5,2668.2,0.0965546]
[1739203738820,3.74733,2668.6,2668.2,0.0965546]
[1739203739587,3.74714,2668.7,2668.2,3.8443746]
[1739203739783,3.74714,2668.7,2668.2,3.8443946]
[1739203740090,6.74696,2668.9,2668.2,0.0965546]
[1739203740293,0.7987,2669.4,2668.5,3.74742]
[1739203740516,0.7987,2669.4,2669.1,3.74644]
[1739203740691,0.7987,2669.7,2669.1,3.74644]
[1739203741013,3.74494,2670.3,2669.7,3.74567]
[1739203741177,0.7987,2670.2,2669.4,3.74602]
[1739203741378,3.74536,2670.0,2669.8,0.09470167]
[1739203741697,3.75286,2670.0,2669.9,0.09460058]
[1739203742026,3.75286,2670.0,2669.4,3.74602]
[1739203742525,3.75286,2670.0,2669.5,3.74601]
[1739203742526,3.74536,2670.0,2669.5,3.74601]
[1739203744819,7.49078,2670.0,2669.4,8.75]
[1739203744994,0.0075,2670.0,2669.4,8.75]
[1739203745194,0.7987,2670.2,2669.4,8.75]
[1739203745195,3.74574,2669.7,2669.4,8.75]
[1739203745397,3.74553,2669.9,2669.3,0.7534]
[1739203745718,3.74536,2670.0,2669.4,3.74615]
[1739203745878,3.74536,2670.0,2669.5,3.746]
[1739203746079,3.74524,2670.1,2669.6,3.74578]
[1739203746320,4.54337,2670.5,2669.7,3.74571]
[1739203746518,4.54337,2670.5,2670.0,3.74527]
[1739203746749,3.7445,2670.6,2670.1,3.74516]
[1739203746956,3.74438,2670.7,2670.2,3.74503]
[1739203747153,4.5425,2671.1,2670.3,0.03744677]
[1739203747468,3.7438,2671.1,2670.6,3.74447]
[1739203747768,4.55225,2671.3,2670.8,3.7441]
[1739203747769,4.55219,2671.3,2670.8,3.7441]
[1739203748054,0.8087,2671.3,2670.8,3.7441]
[1739203748219,4.55222,2671.3,2670.9,0.09262112]
[1739203748550,3.75352,2671.3,2670.9,0.09262112]
[1739203749066,3.74387,2671.1,2670.9,0.09262112]
[1739203749440,3.75353,2671.3,2670.7,12.49433]
[1739203749756,0.01,2671.3,2670.7,8.75]
[1739203749956,3.74871,2671.2,2670.8,0.09272213]
[1739203750429,3.74871,2671.2,2670.7,8.75]
[1739203750630,7.49245,2671.2,2670.9,0.09262112]
[1739203750815,3.74871,2671.2,2670.8,0.09272213]
[1739203751015,3.74871,2671.2,2671.0,0.09252011]
[1739203751249,3.74871,2671.2,2670.7,12.49431]
[1739203751556,0.005,2671.2,2670.7,16.23851]
[1739203751717,0.005,2671.2,2670.8,0.09272213]
[1739203751919,0.005,2671.2,2670.9,3.74405]
[1739203752145,0.005,2671.2,2671.0,0.09252011]
[1739203752458,0.005,2671.2,2671.0,3.83631011]
[1739203752614,0.005,2671.2,2671.1,3.74377]
[1739203753011,0.005,2671.2,2671.1,3.83587111]
[1739203753254,0.005,2671.2,2671.1,0.09210111]
[1739203753412,0.005,2671.2,2671.1,3.83587111]
[1739203753913,0.005,2671.2,2671.1,12.58587111]
[1739203754768,0.005,2671.2,2671.1,15.99756536]
[1739203754919,0.005,2671.2,2671.1,16.54756536]
[1739203755956,1e-05,2671.2,2671.1,24.94506536]
[1739203756308,0.005,2672.2,2672.1,3.74237]
[1739203756515,0.005,2672.2,2672.1,3.83336024]
[1739203756744,0.005,2672.2,2672.1,12.58336024]
[1739203757065,1e-05,2672.2,2672.1,22.28486024]
[1739203757360,1e-05,2672.2,2672.1,57.29236024]
[1739203757724,0.1457779,2673.3,2673.2,4.50233]
[1739203757977,0.2,2674.8,2673.2,4.50233]
[1739203757978,3.73851,2674.9,2674.1,3.73955]
[1739203758174,0.7943741,2675.3,2674.1,0.7615]
[1739203758175,3.73822,2675.1,2674.1,0.7615]
[1739203758488,0.7943741,2675.3,2674.3,3.20019425]
[1739203758489,0.73123951,2675.2,2674.3,3.20019425]
[1739203758668,4.5323041,2675.3,2674.3,6.38943425]
[1739203758989,3.73895,2674.6,2674.4,0.08716265]
[1739203759204,3.73901,2674.5,2674.4,0.08716265]
[1739203759350,3.73901,2674.5,2673.9,8.75]
[1739203759699,3.73895,2674.6,2674.4,0.08674092]
[1739203759999,3.73905,2674.5,2673.9,8.75]
[1739203760203,0.0075,2674.5,2673.8,8.75]
[1739203760494,3.74041,2673.5,2673.4,8.75]
[1739203760699,3.74062,2673.4,2672.9,1.0495]
[1739203760849,3.74068,2673.4,2672.9,0.288]
[1739203761051,3.7412,2673.0,2672.6,9.5115]
[1739203761289,3.74153,2672.8,2672.3,8.75]
[1739203761489,3.74127,2672.9,2672.4,8.75]
[1739203761649,0.778,2673.1,2672.1,1.0495]
[1739203761650,3.74181,2672.5,2672.2,8.75]
[1739203762083,3.74144,2672.8,2672.2,8.75]
[1739203762693,3.74176,2672.6,2672.2,8.75]
[1739203762997,3.7415,2672.8,2672.2,8.75]
[1739203763300,3.74195,2672.4,2672.3,0.08487338]
[1739203763497,3.74168,2672.6,2672.3,0.08487338]
[1739203763798,3.74158,2672.7,2672.4,0.08477248]
[1739203763954,3.74173,2672.6,2672.4,0.08477248]
[1739203764156,3.74173,2672.6,2671.9,12.49264]
[1739203764367,3.74173,2672.6,2672.5,0.08467158]
[1739203764600,3.74158,2672.7,2672.0,3.74244]
[1739203764805,3.74144,2672.8,2672.5,0.08467158]
[1739203765102,3.74144,2672.8,2672.1,3.74225]
[1739203765255,3.74137,2672.9,2672.6,0.0845707]
[1739203765604,3.74168,2672.6,2671.9,15.14281425]
[1739203765796,3.74168,2672.6,2671.9,12.49262]
[1739203766298,3.74168,2672.6,2672.0,8.75]
[1739203766797,3.74191,2672.5,2672.0,8.75]
[1739203767158,3.74168,2672.6,2672.0,8.75]
[1739203767588,3.74181,2672.5,2672.0,8.75]
[1739203767907,3.74168,2672.6,2672.0,8.75]
[1739203768310,3.74141,2672.8,2672.0,8.75]
[1739203768609,3.74121,2673.0,2672.3,3.74198]
[1739203768899,3.74129,2672.9,2672.3,3.74198]
[1739203769315,0.778,2673.1,2672.0,8.75]
[1739203769618,3.74183,2672.5,2672.0,8.75]
[1739203769788,3.74205,2672.4,2672.0,8.75]
[1739203769984,3.74183,2672.5,2672.0,8.75]
[1739203770612,0.778,2673.1,2671.7,3.74292]
[1739203770613,0.0075,2672.6,2671.8,8.75]
[1739203770778,3.74251,2672.0,2671.8,8.75]
[1739203771104,0.0075,2672.6,2671.7,8.75]
[1739203771105,3.74229,2672.2,2671.7,8.75]
[1739203771422,0.778,2672.4,2671.7,3.74283]
[1739203771423,3.74212,2672.3,2671.7,3.74283]
[1739203771579,3.74227,2672.2,2671.6,9.5115]
[1739203771788,0.778,2672.4,2671.6,9.5115]
[1739203772097,3.74231,2672.2,2671.6,13.25455]
[1739203772297,3.74231,2672.2,2671.6,13.25454]
[1739203772518,3.74209,2672.3,2671.6,9.5115]
[1739203772720,3.74269,2671.9,2671.6,9.5115]
[1739203773035,3.7429,2671.8,2671.6,8.75]
[1739203773215,3.74315,2671.6,2671.3,8.75]
[1739203773415,3.74335,2671.4,2671.3,8.75]
[1739203773728,3.74308,2671.6,2671.3,8.75]
[1739203774029,3.7432,2671.6,2671.3,8.75]
[1739203774186,7.48639,2671.6,2671.3,8.75]
[1739203774393,3.74319,2671.6,2671.3,8.75]
[1739203774698,3.74283,2671.8,2671.3,8.75]
[1739203774917,7.48574,2671.8,2671.3,8.75]
[1739203775117,3.74295,2671.7,2671.3,8.75]
[1739203777231,0.0075,2672.3,2671.3,8.75]
[1739203777232,0.73564337,2672.6,2671.3,8.75]
[1739203777430,3.74219,2672.3,2671.7,3.74281]
[1739203777732,3.74223,2672.2,2671.7,3.74281]
[1739203778035,3.74252,2672.0,2671.5,4.50462]
[1739203778327,3.74265,2671.9,2671.4,8.75]
[1739203778532,3.74295,2671.7,2671.5,0.08710908]
[1739203779122,0.0075,2672.0,2671.5,3.83027908]
[1739203779326,3.74267,2671.9,2671.5,0.08710908]
[1739203779805,3.74248,2672.1,2671.5,0.08710908]
[1739203780010,3.74245,2672.1,2671.5,3.83021908]
[1739203780726,3.74251,2672.0,2671.5,3.83021908]
[1739203781043,3.74245,2672.1,2671.5,0.08710908]
[1739203781340,3.74267,2671.9,2671.5,0.08710908]
[1739203781498,3.74246,2672.1,2671.5,3.83024908]
[1739203781803,3.74246,2672.1,2671.5,7.57334908]
[1739203782005,3.74246,2672.1,2671.6,3.743]
[1739203782211,3.74198,2672.4,2671.9,3.74264]
[1739203782442,3.7419,2672.5,2671.9,3.74257]
[1739203782646,3.7419,2672.5,2672.0,0.08678865]
[1739203782949,3.74197,2672.4,2672.0,0.08678865]
[1739203783102,3.74153,2672.7,2672.1,3.74237]
[1739203783295,3.74168,2672.6,2672.1,3.74237]
[1739203783635,7.48345,2672.6,2672.2,0.08658681]
[1739203783841,3.74183,2672.5,2672.0,3.74243]
[1739203784374,3.74183,2672.5,2672.1,0.08668773]
[1739203784678,3.74197,2672.4,2672.1,0.08668773]
[1739203785051,3.74197,2672.4,2671.9,0.7673]
[1739203785242,7.48403,2672.4,2672.2,0.08658681]
[1739203785563,3.74197,2672.4,2672.3,0.0864859]
[1739203785766,3.74197,2672.4,2671.9,0.7673]
[1739203785953,3.74197,2672.4,2672.3,0.0864859]
[1739203786157,3.74197,2672.4,2671.9,0.7673]
[1739203786357,3.74197,2672.4,2672.3,0.0864859]
[1739203786531,3.0,2672.6,2672.0,3.7425]
[1739203786726,3.0,2672.6,2672.1,0.08668773]
[1739203786969,3.74223,2672.2,2672.1,0.08668773]
[1739203787158,4.5729,2672.3,2672.1,0.08668773]
[1739203787353,3.74186,2672.5,2672.1,0.08668773]
[1739203787634,3.0,2672.6,2672.1,0.08668773]
[1739203787881,3.74184,2672.5,2672.1,0.08668773]
[1739203788095,3.74213,2672.3,2672.1,0.08668773]
[1739203788597,3.74204,2672.4,2672.1,0.08668773]
[1739203788738,3.74223,2672.2,2672.1,0.08668773]
[1739203789456,3.7421,2672.3,2672.1,0.08668773]
[1739203789847,3.74223,2672.2,2672.1,0.08668773]
[1739203790029,3.7421,2672.3,2672.1,0.08668773]
[1739203790432,3.74223,2672.2,2672.1,0.08668773]
[1739203790749,3.7421,2672.3,2672.1,0.08668773]
[1739203791273,3.74189,2672.5,2672.1,0.08668773]
[1739203791462,3.74947,2672.4,2672.1,0.08668773]
[1739203791665,3.74197,2672.4,2672.1,0.08668773]
[1739203791979,3.74189,2672.5,2672.1,0.08668773]
[1739203792175,4.57242,2672.7,2672.2,3.74214]
[1739203792176,8.31406,2672.7,2672.2,3.74214]
[1739203792480,8.31403,2672.7,2672.2,3.82872681]
[1739203792633,4.57241,2672.7,2672.2,3.82872681]
[1739203793044,6.74883,2672.9,2672.2,4.65762681]
[1739203793259,0.74157883,2673.1,2672.2,4.43987717]
[1739203793470,0.74157883,2673.1,2672.7,3.74146]
[1739203793669,0.74157883,2673.1,2672.8,3.77879969]
[1739203793874,3.74113,2673.0,2672.8,0.0857728]
[1739203794180,3.74113,2673.0,2672.5,3.74173]
[1739203794333,4.48261883,2673.1,2672.9,0.08566498]
[1739203794539,4.48261883,2673.1,2672.5,3.74172]
[1739203794768,0.74157883,2673.1,2672.6,0.08596759]
[1739203795283,0.74157883,2673.1,2672.8,0.8289]
[1739203795442,0.74157883,2673.1,2672.8,4.57019]
[1739203795644,0.74157883,2673.1,2672.9,0.08554677]
[1739203795844,3.0,2673.3,2672.9,0.08554677]
[1739203796280,3.74056,2673.4,2672.9,8.83554677]
[1739203796660,3.7407,2673.3,2672.9,8.83554677]
[1739203797577,3.74047,2673.5,2672.9,8.83554677]
[1739203797785,3.74047,2673.5,2673.0,3.74109]
[1739203798074,7.57096,2673.7,2673.0,3.82653592]
[1739203798241,3.74045,2673.5,2673.0,3.82646592]
[1739203798441,3.74045,2673.5,2673.0,7.56749592]
[1739203798642,3.74045,2673.5,2673.0,3.82646592]
[1739203799251,11.31119,2673.7,2673.1,3.74093]
[1739203799455,3.74031,2673.6,2673.1,0.08534507]
[1739203799780,6.74016,2673.7,2673.1,0.08534507]
[1739203800082,3.0,2673.8,2673.3,3.74059]
[1739203800236,3.7674,2674.0,2673.3,3.74059]
[1739203800578,3.7674,2674.0,2673.1,0.08534507]
[1739203800579,3.75184,2674.3,2673.6,3.74019]
[1739203800757,3.73945,2674.2,2673.7,3.74013]
[1739203800952,3.0,2674.1,2673.8,0.08444124]
[1739203801258,3.74434,2674.3,2673.8,0.08444124]
[1739203801456,3.73972,2674.0,2673.6,8.75]
[1739203801658,3.73972,2674.0,2673.9,0.08434045]
[1739203801954,3.73959,2674.1,2673.9,0.08423275]
[1739203802169,3.73959,2674.1,2673.6,12.49026]
[1739203802485,3.73959,2674.1,2674.0,0.08413197]
[1739203803184,3.73959,2674.1,2673.6,12.49019]
[1739203803392,3.73959,2674.1,2674.0,0.08413197]
[1739203803603,6.73959,2674.1,2673.6,8.75]
[1739203803767,3.73992,2673.9,2673.6,8.75]
[1739203804087,3.74013,2673.7,2673.6,8.75]
[1739203804295,3.74049,2673.5,2673.1,0.8188]
[1739203804451,0.0075,2673.8,2673.1,0.8188]
[1739203804452,3.74058,2673.4,2673.1,0.8188]
[1739203804652,3.74058,2673.4,2672.8,4.56008]
[1739203804985,3.74042,2673.5,2673.0,3.74098]
[1739203805289,3.7403,2673.6,2672.9,3.74115]
[1739203805464,0.7674,2673.9,2673.0,0.58740638]
[1739203805657,3.73957,2674.1,2673.6,3.74019]
[1739203805857,4.50683,2674.2,2673.6,7.48038]
[1739203806198,4.50683,2674.2,2673.2,8.7873998]
[1739203806199,3.73998,2673.9,2673.4,3.74041]
[1739203806400,3.73972,2674.0,2673.5,3.74036]
[1739203806551,3.73972,2674.0,2673.4,7.48087]
[1739203806766,3.73962,2674.1,2673.4,3.74041]
[1739203806963,4.50687,2674.2,2673.6,3.74016]
[1739203807199,3.74438,2674.3,2673.8,3.73998]
[1739203807406,0.005,2674.3,2673.8,3.73992]
[1739203807578,3.74436,2674.3,2673.7,0.8188]
[1739203807774,3.73959,2674.1,2673.7,0.8188]
[1739203808162,3.74441,2674.3,2673.8,0.08375658]
[1739203808367,3.74441,2674.3,2673.7,4.5589]
[1739203808601,3.73979,2674.0,2673.9,0.08365579]
[1739203808764,3.73979,2674.0,2673.5,3.7404]
[1739203808968,3.73962,2674.1,2673.9,0.08365579]
[1739203809274,3.73962,2674.1,2673.5,3.74031]
[1739203809591,3.74707,2674.1,2674.0,0.08355501]
[1739203809794,3.74707,2674.1,2673.4,0.8188]
[1739203809960,3.74707,2674.1,2674.0,0.08357933]
[1739203810301,3.74026,2673.7,2673.2,8.75]
[1739203810522,0.0075,2673.8,2673.3,3.74064]
[1739203810690,0.7674,2674.2,2673.3,0.08428494]
[1739203810888,3.74055,2673.4,2673.3,0.08428494]
[1739203811087,3.74055,2673.4,2672.8,0.8188]
[1739203811269,3.74055,2673.4,2673.3,0.0843857]
[1739203811468,3.74055,2673.4,2672.8,4.56007]
[1739203811767,3.74055,2673.4,2672.9,3.74122]
[1739203812085,3.74072,2673.3,2672.9,0.08478907]
[1739203812573,3.74042,2673.5,2672.9,0.08478907]
[1739203812901,3.74018,2673.7,2673.1,3.74096]
[1739203813269,3.74018,2673.7,2673.2,0.08455603]
[1739203813469,3.74018,2673.7,2673.2,3.82526603]
[1739203813668,3.74018,2673.7,2673.2,3.74071]
[1739203813869,3.74018,2673.7,2673.3,0.08445519]
[1739203814069,3.74039,2673.6,2673.3,0.08445519]
[1739203814314,3.74039,2673.6,2672.8,0.8188]
[1739203814527,3.74018,2673.7,2673.4,0.08435437]
[1739203814811,4.51881,2674.3,2673.8,3.73993]
[1739203815106,3.74437,2674.3,2673.8,4.55133]
[1739203815305,0.005,2674.3,2673.9,3.8237368]
[1739203815504,0.005,2674.3,2673.9,0.0839268]
[1739203815691,3.74438,2674.3,2673.9,0.0839268]
[1739203815890,0.005,2674.3,2673.9,3.8237568]
[1739203816092,0.005,2674.3,2674.1,3.73955]
[1739203816493,0.005,2674.3,2674.2,0.08362448]
[1739203816702,3.74429,2674.3,2674.2,0.08362448]
[1739203816871,3.74429,2674.3,2673.8,0.8114]
[1739203817232,3.73962,2674.1,2673.8,0.8114]
[1739203817373,3.73962,2674.1,2673.5,8.75]
[1739203817374,0.005,2674.3,2673.9,0.0839268]
[1739203817571,3.73971,2674.0,2673.5,13.30176]
[1739203817771,3.73971,2674.0,2673.5,9.5614]
[1739203818052,3.73958,2674.1,2673.5,9.5614]
[1739203818386,3.73958,2674.1,2673.6,3.74023]
[1739203818987,3.73958,2674.1,2673.5,9.5614]
[1739203819184,3.73985,2673.9,2673.5,8.75]
[1739203819388,3.73985,2673.9,2673.4,3.74043]
[1739203819389,3.74013,2673.7,2673.2,4.55215]
[1739203819713,3.73992,2673.9,2673.3,3.74061]
[1739203819911,3.73992,2673.9,2673.3,3.74069]
[1739203820077,4.51413,2674.1,2673.4,3.74053]
[1739203820410,7.48371,2674.3,2673.6,3.74024]
[1739203820775,3.74434,2674.3,2673.4,0.8114]
[1739203821012,3.74434,2674.3,2673.7,3.74]
[1739203821200,3.73953,2674.2,2673.6,3.74025]
[1739203821401,3.73954,2674.2,2673.6,3.74025]
[1739203821597,3.73968,2674.1,2673.6,3.74025]
[1739203821832,0.005,2674.3,2673.8,3.73989]
[1739203822037,0.005,2674.3,2674.0,3.73963]
[1739203822447,0.005,2674.3,2674.0,3.73971]
[1739203822604,0.005,2674.3,2674.0,3.73963]
[1739203823147,0.005,2674.3,2674.2,3.73943]
[1739203823495,0.005,2674.3,2674.2,3.82280089]
[1739203824518,0.005,2674.3,2674.2,0.08337089]
[1739203824939,3.74431,2674.3,2674.0,8.75]
[1739203825135,3.74431,2674.3,2674.2,0.08329102]
[1739203825338,0.005,2674.3,2674.1,0.08339179]
[1739203825548,0.005,2674.3,2674.0,8.75]
[1739203825549,0.005,2674.3,2674.2,0.08329102]
[1739203825948,3.74436,2674.3,2674.0,8.75]
[1739203826249,3.74436,2674.3,2674.1,0.08339179]
[1739203827346,0.005,2674.3,2674.1,0.08339179]
[1739203827641,3.73943,2674.2,2674.1,0.08339179]
[1739203828037,3.73986,2673.9,2673.5,0.8114]
[1739203828554,3.73961,2674.1,2673.5,4.55176]
[1739203828709,3.73986,2673.9,2673.5,0.8114]
[1739203829501,0.0075,2674.1,2673.0,8.75]
[1739203829742,3.74057,2673.4,2673.0,8.75]
[1739203829945,0.0075,2673.9,2673.0,8.75]
[1739203830129,3.74075,2673.3,2672.9,0.7878]
[1739203830534,3.7409,2673.2,2672.9,0.7878]
[1739203831214,0.8189,2674.0,2673.0,0.03740812]
[1739203831546,0.8189,2674.0,2673.5,3.74033]
[1739203831749,3.73988,2673.9,2673.4,3.74048]
[1739203831924,4.55872,2674.0,2673.5,3.74041]
[1739203832119,0.8189,2674.0,2673.0,3.74111]
[1739203832309,0.8189,2674.0,2673.5,3.74039]
[1739203832711,4.55862,2674.0,2673.5,3.74039]
[1739203833103,3.73959,2674.1,2673.6,3.7402]
[1739203833252,3.73973,2674.0,2673.5,4.52812]
[1739203833549,7.47903,2674.2,2673.6,3.74026]
[1739203833755,3.73948,2674.2,2673.7,3.74008]
[1739203834252,4.56319,2674.3,2673.8,3.73994]
[1739203834458,0.005,2674.3,2673.9,3.73978]
[1739203834862,0.005,2674.3,2674.0,3.73971]
[1739203835063,0.005,2674.3,2673.9,3.73978]
[1739203835227,0.005,2674.3,2673.9,3.73976]
[1739203835426,0.005,2674.3,2674.1,3.73957]
[1739203835658,0.005,2674.3,2674.2,3.77682142]
[1739203835821,0.005,2674.3,2674.2,3.73943]
[1739203836028,0.005,2674.3,2674.2,3.77681934]
[1739203836751,0.005,2674.3,2674.2,3.73943]
[1739203837131,0.005,2674.3,2674.2,13.27723]
[1739203837339,4.55646,2675.6,2675.0,3.73819]
[1739203837573,3.73767,2675.5,2675.0,0.7878]
[1739203838082,3.73783,2675.4,2674.8,3.73856]
[1739203838231,3.73783,2675.4,2675.1,0.11883497]
[1739203838435,3.73783,2675.4,2674.8,3.73856]
[1739203838679,0.8189,2675.6,2675.2,0.11873274]
[1739203838881,3.7543541,2675.3,2674.7,4.52646]
[1739203839036,3.7543541,2675.3,2675.2,0.11873274]
[1739203839380,3.73832,2675.0,2674.7,0.7878]
[1739203839560,0.0163741,2675.3,2674.7,0.7878]
[1739203839746,3.73833,2675.0,2674.8,0.11914171]
[1739203840074,3.73833,2675.0,2674.7,0.7878]
[1739203840238,3.73831,2675.0,2674.9,0.11894921]
[1739203840435,3.73831,2675.0,2674.7,0.7878]
[1739203840661,3.73821,2675.1,2674.9,0.11894921]
[1739203840866,3.73865,2674.8,2674.3,0.7878]
[1739203841045,3.73865,2674.8,2674.2,3.73933]
[1739203841557,0.8189,2675.2,2674.0,0.7878]
[1739203841773,0.0075,2674.9,2674.0,0.7878]
[1739203841978,3.73957,2674.1,2673.6,0.7878]
[1739203842134,3.73974,2674.0,2673.6,0.7878]
[1739203842332,3.73949,2674.2,2673.6,0.7878]
[1739203842538,3.73959,2674.1,2673.6,0.7878]
[1739203842748,0.8189,2674.7,2673.8,3.73999]
[1739203842951,3.73912,2674.5,2673.9,3.73982]
[1739203843252,3.73888,2674.6,2674.1,3.73956]
[1739203843451,4.55768,2674.7,2674.0,3.73969]
[1739203843649,3.73889,2674.6,2674.0,3.73969]
[1739203843876,0.8189,2674.7,2674.2,3.7393]
[1739203844047,3.73847,2674.9,2674.3,0.7541]
[1739203844468,7.47704,2674.9,2674.3,0.7541]
[1739203844653,3.73861,2674.8,2674.3,0.7541]
[1739203845196,3.7585,2675.1,2674.3,4.49331]
[1739203845197,4.49674,2675.1,2674.3,4.49331]
[1739203845374,3.73845,2674.9,2674.4,3.73914]
[1739203845777,3.73845,2674.9,2674.3,0.7541]
[1739203845984,3.7387,2674.8,2674.3,0.7541]
[1739203846493,3.73865,2674.8,2674.3,4.49338]
[1739203846647,3.73877,2674.7,2674.3,0.7541]
[1739203846849,3.73898,2674.6,2674.2,8.75]
[1739203847062,3.73877,2674.7,2674.2,8.75]
[1739203847374,3.73877,2674.7,2674.2,12.48933]
[1739203847779,7.47764,2674.7,2674.2,8.75]
[1739203848007,7.47763,2674.7,2674.2,8.75]
[1739203848299,3.73877,2674.7,2674.2,8.75]
[1739203848504,3.73877,2674.7,2674.2,12.48935]
[1739203849051,0.7585,2675.1,2674.3,3.73929]
[1739203849248,0.7585,2675.1,2674.7,3.73866]
[1739203849463,3.7543341,2675.3,2674.6,0.7541]
[1739203849692,3.7543341,2675.3,2674.7,3.73866]
[1739203849995,0.0163741,2675.3,2674.4,3.73905]
[1739203850361,3.73837,2675.0,2674.4,7.47813]
[1739203850695,0.7585,2674.9,2674.5,3.73888]
[1739203850850,0.7585,2674.9,2674.4,7.47811]
[1739203851050,3.7388,2674.7,2674.3,0.7541]
[1739203851253,3.73907,2674.5,2674.0,0.7541]
[1739203851451,3.73921,2674.4,2674.0,0.7541]
[1739203851749,3.73921,2674.4,2673.9,3.73985]
[1739203851953,3.73921,2674.4,2673.8,4.494]
[1739203852277,3.73907,2674.5,2674.0,3.73967]
[1739203852493,3.73869,2674.8,2673.8,0.7541]
[1739203852693,3.73869,2674.8,2674.1,12.48947]
[1739203852993,7.47791,2674.6,2674.1,12.48947]
[1739203853203,3.7389,2674.6,2674.1,12.48947]
[1739203853352,3.7389,2674.6,2674.2,0.11541496]
[1739203854050,3.7391,2674.5,2674.2,0.11541496]
[1739203854907,3.73922,2674.4,2674.2,0.11541496]
[1739203855090,4.49779,2674.3,2674.2,0.11541496]
[1739203855405,3.74016,2673.7,2673.1,0.7541]
[1739203855552,3.74016,2673.7,2673.1,4.495]
[1739203855761,3.74028,2673.6,2673.2,0.116701]
[1739203855954,0.7585,2674.1,2673.2,0.116701]
[1739203856206,0.75888244,2674.0,2673.2,0.116701]
[1739203856388,0.7585,2674.6,2674.0,3.73959]
[1739203856561,3.73903,2674.5,2674.0,3.73959]
[1739203856895,7.47842,2674.4,2674.1,0.1159147]
[1739203857056,3.73905,2674.5,2674.0,3.7397]
[1739203857399,3.73917,2674.4,2674.2,0.11581239]
[1739203857558,3.73917,2674.4,2674.1,0.1159147]
[1739203857759,4.49745,2674.6,2674.3,0.11571009]
[1739203857970,3.73915,2674.4,2674.2,0.11581239]
[1739203858293,3.73915,2674.4,2673.8,3.73988]
[1739203858502,3.73915,2674.4,2673.9,3.73983]
[1739203858803,3.73915,2674.4,2673.8,3.73988]
[1739203859171,4.49745,2674.6,2673.8,3.73988]
[1739203859390,4.49745,2674.6,2673.9,0.03739375]
[1739203859595,3.73938,2674.3,2673.7,3.74013]
[1739203859769,3.73938,2674.3,2673.8,3.73994]
[1739203860601,7.47811,2674.5,2673.8,3.7399]
[1739203860808,7.47814,2674.5,2673.9,3.73982]
[1739203861108,3.7393,2674.3,2673.8,3.7399]
[1739203862166,4.52405,2674.9,2674.2,3.7393]
[1739203862413,4.52404,2674.9,2674.3,0.03738862]
[1739203862715,0.0163741,2675.3,2675.0,3.7383]
[1739203863072,0.0163741,2675.3,2675.0,3.7382]
[1739203863277,0.0163741,2675.3,2674.5,8.75]
[1739203863611,0.0163741,2675.3,2674.9,3.52439036]